[Event "Titled Tuesday Blitz January 31 Late 2023"]
[White "Kim, Sergey"]
[Black "Paveto, Kevin"]
[WhiteFideId "13700570"]
[BlackFideId "173444"]
[WhiteElo "2295"]
[BlackElo "2427"]
[Result "1-0"]
[Round "04"]
[TimeControl "180+2"]
[Date "2023.01.31"]
[WhiteClock "0:00:49"]
[BlackClock "0:00:27"]

1. d4 {[%clk 0:03:00]}  Nf6 {[%clk 0:03:00]} 2. c4 {[%clk 0:03:00]}  g6 {[%clk 0:03:00]} 3. Nc3 {[%clk 0:03:00]}  d5 {[%clk 0:03:01]} 4. cxd5 {[%clk 0:03:00]}  Nxd5 {[%clk 0:03:02]} 5. e4 {[%clk 0:03:00]}  Nxc3 {[%clk 0:03:02]} 6. bxc3 {[%clk 0:03:01]}  Bg7 {[%clk 0:03:03]} 7. Bc4 {[%clk 0:03:01]}  O-O {[%clk 0:03:03]} 8. Ne2 {[%clk 0:03:01]}  c5 {[%clk 0:03:04]} 9. O-O {[%clk 0:03:01]}  b6 {[%clk 0:03:03]} 10. Be3 {[%clk 0:03:01]}  Bb7 {[%clk 0:03:03]} 11. Ng3 {[%clk 0:02:59]}  cxd4 {[%clk 0:03:01]} 12. cxd4 {[%clk 0:02:58]}  Nc6 {[%clk 0:03:02]} 13. e5 {[%clk 0:02:57]}  Rc8 {[%clk 0:02:55]} 14. Rc1 {[%clk 0:02:56]}  Na5 {[%clk 0:02:54]} 15. Bd3 {[%clk 0:02:53]}  Qd5 {[%clk 0:02:54]} 16. Be4 {[%clk 0:02:33]}  Qd7 {[%clk 0:02:54]} 17. Bxb7 {[%clk 0:02:24]}  Qxb7 {[%clk 0:02:54]} 18. Qg4 {[%clk 0:02:17]}  Nc4 {[%clk 0:02:37]} 19. Bg5 {[%clk 0:02:14]}  b5 {[%clk 0:02:34]} 20. Qh4 {[%clk 0:02:08]}  f6 {[%clk 0:02:11]} 21. exf6 {[%clk 0:02:03]}  exf6 {[%clk 0:02:12]} 22. Bh6 {[%clk 0:02:03]}  f5 {[%clk 0:02:08]} 23. Bxg7 {[%clk 0:02:01]}  Qxg7 {[%clk 0:02:09]} 24. Qf4 {[%clk 0:01:57]}  Rcd8 {[%clk 0:02:07]} 25. Rfd1 {[%clk 0:01:50]}  Rd5 {[%clk 0:01:53]} 26. h4 {[%clk 0:01:50]}  Rfd8 {[%clk 0:01:53]} 27. a4 {[%clk 0:01:35]}  a6 {[%clk 0:01:50]} 28. axb5 {[%clk 0:01:34]}  axb5 {[%clk 0:01:51]} 29. h5 {[%clk 0:01:33]}  Rxd4 {[%clk 0:01:48]} 30. Rxd4 {[%clk 0:01:32]}  Qxd4 {[%clk 0:01:49]} 31. Qc7 {[%clk 0:01:26]}  Qd6 {[%clk 0:01:39]} 32. Qb7 {[%clk 0:01:17]}  Rb8 {[%clk 0:01:36]} 33. Qa7 {[%clk 0:01:16]}  Re8 {[%clk 0:01:25]} 34. h6 {[%clk 0:01:14]}  Qe7 {[%clk 0:01:17]} 35. Qa6 {[%clk 0:01:13]}  Qg5 {[%clk 0:01:15]} 36. Rd1 {[%clk 0:01:04]}  f4 {[%clk 0:00:59]} 37. Ne4 {[%clk 0:00:59]}  Rxe4 {[%clk 0:00:44]} 38. Qa8+ {[%clk 0:00:59]}  Kf7 {[%clk 0:00:44]} 39. Qxe4 {[%clk 0:00:58]}  Ne5 {[%clk 0:00:34]} 40. Qb7+ {[%clk 0:00:53]}  Kf6 {[%clk 0:00:30]} 41. Rd6+ {[%clk 0:00:50]}  Kf5 {[%clk 0:00:27]} 42. Qc8+ {[%clk 0:00:50]}  Ke4 {[%clk 0:00:27]} 43. Qc2+ {[%clk 0:00:49]} 1-0


[Site "https://www.chess.com"]

[Event "Titled Tuesday Blitz January 31 Late 2023"]
[White "Timmermans, Mark"]
[Black "Reprintsev, Alexander"]
[WhiteFideId "1026399"]
[BlackFideId "14100541"]
[WhiteElo "2392"]
[BlackElo "2253"]
[Result "1-0"]
[Round "04"]
[TimeControl "180+2"]
[Date "2023.01.31"]
[WhiteClock "0:00:53"]
[BlackClock "0:00:04"]

1. e4 {[%clk 0:02:59]}  d5 {[%clk 0:02:46]} 2. exd5 {[%clk 0:02:59]}  Qxd5 {[%clk 0:02:44]} 3. Nc3 {[%clk 0:02:58]}  Qa5 {[%clk 0:02:44]} 4. b4 {[%clk 0:02:58]}  Qxb4 {[%clk 0:02:43]} 5. Rb1 {[%clk 0:02:57]}  Qd6 {[%clk 0:02:43]} 6. Nf3 {[%clk 0:02:56]}  Nf6 {[%clk 0:02:43]} 7. Bc4 {[%clk 0:02:52]}  e6 {[%clk 0:02:42]} 8. O-O {[%clk 0:02:51]}  a6 {[%clk 0:02:42]} 9. a4 {[%clk 0:02:48]}  Nc6 {[%clk 0:02:40]} 10. d4 {[%clk 0:02:47]}  Be7 {[%clk 0:02:38]} 11. h3 {[%clk 0:02:11]}  O-O {[%clk 0:02:37]} 12. Bd3 {[%clk 0:02:06]}  Rd8 {[%clk 0:02:34]} 13. Bb2 {[%clk 0:01:51]}  Nxd4 {[%clk 0:02:17]} 14. Nxd4 {[%clk 0:01:52]}  Qxd4 {[%clk 0:02:17]} 15. Ne4 {[%clk 0:01:53]}  Qxe4 {[%clk 0:02:09]} 16. Bxf6 {[%clk 0:01:52]}  gxf6 {[%clk 0:01:25]} 17. Bxe4 {[%clk 0:01:52]}  Rxd1 {[%clk 0:01:26]} 18. Rfxd1 {[%clk 0:01:53]}  Rb8 {[%clk 0:01:25]} 19. a5 {[%clk 0:01:45]}  b5 {[%clk 0:01:22]} 20. axb6 {[%clk 0:01:44]}  cxb6 {[%clk 0:01:22]} 21. c4 {[%clk 0:01:43]}  f5 {[%clk 0:01:20]} 22. Bd3 {[%clk 0:01:41]}  Kf8 {[%clk 0:01:12]} 23. Be2 {[%clk 0:01:40]}  Ke8 {[%clk 0:01:11]} 24. Rb3 {[%clk 0:01:38]}  Bc5 {[%clk 0:01:10]} 25. Rg3 {[%clk 0:01:36]}  Bb7 {[%clk 0:00:57]} 26. Rg8+ {[%clk 0:01:34]}  Bf8 {[%clk 0:00:57]} 27. c5 {[%clk 0:01:34]}  bxc5 {[%clk 0:00:53]} 28. Rb1 {[%clk 0:01:34]}  Ke7 {[%clk 0:00:43]} 29. Bxa6 {[%clk 0:01:25]}  Bxa6 {[%clk 0:00:40]} 30. Rxb8 {[%clk 0:01:26]}  Bh6 {[%clk 0:00:40]} 31. Rb6 {[%clk 0:01:20]}  Bd3 {[%clk 0:00:37]} 32. Rc8 {[%clk 0:01:16]}  c4 {[%clk 0:00:37]} 33. Rc7+ {[%clk 0:01:15]}  Kf6 {[%clk 0:00:36]} 34. Rbb7 {[%clk 0:01:14]}  Bd2 {[%clk 0:00:35]} 35. Rxf7+ {[%clk 0:01:13]}  Ke5 {[%clk 0:00:35]} 36. Rbd7 {[%clk 0:01:12]}  f4 {[%clk 0:00:30]} 37. Rf8 {[%clk 0:01:10]}  Bb4 {[%clk 0:00:19]} 38. Rc8 {[%clk 0:01:06]}  f3 {[%clk 0:00:17]} 39. gxf3 {[%clk 0:01:05]}  Ba3 {[%clk 0:00:12]} 40. Kg2 {[%clk 0:01:03]}  Bb2 {[%clk 0:00:12]} 41. Rcd8 {[%clk 0:01:00]}  Bf5 {[%clk 0:00:10]} 42. Rc7 {[%clk 0:00:58]}  c3 {[%clk 0:00:10]} 43. h4 {[%clk 0:00:53]}  h5 {[%clk 0:00:09]} 44. Kf1 {[%clk 0:00:53]}  Kf4 {[%clk 0:00:09]} 45. Ke2 {[%clk 0:00:52]}  Ke5 {[%clk 0:00:05]} 46. Rdc8 {[%clk 0:00:50]}  Kd4 {[%clk 0:00:05]} 47. Rc4+ {[%clk 0:00:51]}  Kd5 {[%clk 0:00:05]} 48. Rxc3 {[%clk 0:00:52]}  Bxc3 {[%clk 0:00:05]} 49. Rxc3 {[%clk 0:00:53]}  Ke5 {[%clk 0:00:05]} 50. Ke3 {[%clk 0:00:53]}  Kd5 {[%clk 0:00:03]} 51. Ra3 {[%clk 0:00:53]}  Ke5 {[%clk 0:00:04]} 52. Ra5+ {[%clk 0:00:53]}  Kf6 {[%clk 0:00:04]} 53. Kf4 {[%clk 0:00:53]} 1-0


[Site "https://www.chess.com"]

[Event "Titled Tuesday Blitz January 31 Late 2023"]
[White "Mekhitarian, Krikor Sevag"]
[Black "Dobrikov, Marco"]
[WhiteFideId "2107660"]
[BlackFideId "12950378"]
[WhiteElo "2537"]
[BlackElo "2269"]
[Result "0-1"]
[Round "04"]
[TimeControl "180+2"]
[Date "2023.01.31"]
[WhiteClock "0:00:03"]
[BlackClock "0:00:12"]

1. e4 {[%clk 0:02:57]}  c5 {[%clk 0:02:59]} 2. Nf3 {[%clk 0:02:56]}  e6 {[%clk 0:02:58]} 3. d4 {[%clk 0:02:52]}  cxd4 {[%clk 0:02:59]} 4. Nxd4 {[%clk 0:02:52]}  a6 {[%clk 0:02:59]} 5. Bd3 {[%clk 0:02:47]}  b5 {[%clk 0:02:58]} 6. O-O {[%clk 0:02:42]}  Bb7 {[%clk 0:02:59]} 7. a4 {[%clk 0:02:42]}  b4 {[%clk 0:02:58]} 8. Nd2 {[%clk 0:02:42]}  Nf6 {[%clk 0:02:57]} 9. Re1 {[%clk 0:02:42]}  Qc7 {[%clk 0:02:56]} 10. e5 {[%clk 0:02:08]}  Nc6 {[%clk 0:02:56]} 11. N4f3 {[%clk 0:02:00]}  Ng4 {[%clk 0:02:48]} 12. Nc4 {[%clk 0:01:40]}  h5 {[%clk 0:02:10]} 13. Bf4 {[%clk 0:01:36]}  a5 {[%clk 0:02:06]} 14. h3 {[%clk 0:01:31]}  Nh6 {[%clk 0:02:05]} 15. Nd6+ {[%clk 0:01:29]}  Bxd6 {[%clk 0:02:04]} 16. exd6 {[%clk 0:01:30]}  Qd8 {[%clk 0:02:04]} 17. Ng5 {[%clk 0:01:20]}  Ng8 {[%clk 0:01:52]} 18. Qe2 {[%clk 0:00:57]}  Nf6 {[%clk 0:01:27]} 19. Rad1 {[%clk 0:00:54]}  Nd5 {[%clk 0:01:20]} 20. Bc1 {[%clk 0:00:52]}  Qf6 {[%clk 0:01:12]} 21. Ne4 {[%clk 0:00:48]}  Qe5 {[%clk 0:01:07]} 22. Nc5 {[%clk 0:00:48]}  Qxe2 {[%clk 0:01:04]} 23. Bxe2 {[%clk 0:00:48]}  O-O-O {[%clk 0:00:58]} 24. Bf3 {[%clk 0:00:43]}  Nb6 {[%clk 0:00:54]} 25. Nxb7 {[%clk 0:00:38]}  Kxb7 {[%clk 0:00:54]} 26. b3 {[%clk 0:00:39]}  Rc8 {[%clk 0:00:54]} 27. Bb2 {[%clk 0:00:39]}  f6 {[%clk 0:00:53]} 28. Re4 {[%clk 0:00:34]}  Nd5 {[%clk 0:00:50]} 29. Rh4 {[%clk 0:00:32]}  Nc3 {[%clk 0:00:41]} 30. Rd3 {[%clk 0:00:27]}  Kb6 {[%clk 0:00:37]} 31. Bxc3 {[%clk 0:00:17]}  bxc3 {[%clk 0:00:38]} 32. Rxc3 {[%clk 0:00:17]}  Ne5 {[%clk 0:00:38]} 33. Rxc8 {[%clk 0:00:16]}  Rxc8 {[%clk 0:00:38]} 34. Bd1 {[%clk 0:00:15]}  g6 {[%clk 0:00:38]} 35. Rd4 {[%clk 0:00:15]}  Rc3 {[%clk 0:00:36]} 36. f4 {[%clk 0:00:13]}  Kc5 {[%clk 0:00:33]} 37. Rd2 {[%clk 0:00:13]}  Nc6 {[%clk 0:00:32]} 38. Be2 {[%clk 0:00:12]}  Nd4 {[%clk 0:00:30]} 39. Bd3 {[%clk 0:00:13]}  f5 {[%clk 0:00:29]} 40. Kf2 {[%clk 0:00:13]}  Kxd6 {[%clk 0:00:27]} 41. Bxf5 {[%clk 0:00:12]}  gxf5 {[%clk 0:00:26]} 42. Rxd4+ {[%clk 0:00:12]}  Kc5 {[%clk 0:00:27]} 43. Rd2 {[%clk 0:00:12]}  h4 {[%clk 0:00:26]} 44. Ke2 {[%clk 0:00:06]}  d5 {[%clk 0:00:26]} 45. Kd1 {[%clk 0:00:06]}  Rg3 {[%clk 0:00:26]} 46. Re2 {[%clk 0:00:06]}  Kd6 {[%clk 0:00:24]} 47. Ke1 {[%clk 0:00:07]}  Rc3 {[%clk 0:00:24]} 48. Kd2 {[%clk 0:00:06]}  Rg3 {[%clk 0:00:25]} 49. Ke1 {[%clk 0:00:06]}  d4 {[%clk 0:00:24]} 50. Kf2 {[%clk 0:00:04]}  Rc3 {[%clk 0:00:23]} 51. Rd2 {[%clk 0:00:04]}  Kd5 {[%clk 0:00:22]} 52. Re2 {[%clk 0:00:05]}  Kd6 {[%clk 0:00:20]} 53. Ke1 {[%clk 0:00:03]}  Rg3 {[%clk 0:00:16]} 54. Kf1 {[%clk 0:00:03]}  Rc3 {[%clk 0:00:11]} 55. Kf2 {[%clk 0:00:03]}  Kd5 {[%clk 0:00:10]} 56. Re5+ {[%clk 0:00:03]}  Kd6 {[%clk 0:00:11]} 57. Rxa5 {[%clk 0:00:02]}  Rxc2+ {[%clk 0:00:11]} 58. Ke1 {[%clk 0:00:02]}  Rxg2 {[%clk 0:00:10]} 59. Re5 {[%clk 0:00:02]}  Rg3 {[%clk 0:00:11]} 60. a5 {[%clk 0:00:02]}  Rxb3 {[%clk 0:00:11]} 61. Kd2 {[%clk 0:00:02]}  Rxh3 {[%clk 0:00:11]} 62. Rb5 {[%clk 0:00:02]}  Ra3 {[%clk 0:00:12]} 63. Kc2 {[%clk 0:00:03]}  h3 {[%clk 0:00:12]} 64. Rb6+ {[%clk 0:00:03]}  Kd5 {[%clk 0:00:12]} 0-1


[Site "https://www.chess.com"]

[Event "Titled Tuesday Blitz January 31 Late 2023"]
[White "Ozates, Tuna"]
[Black "Preotu, Razvan"]
[WhiteFideId "6354521"]
[BlackFideId "2613280"]
[WhiteElo "2251"]
[BlackElo "2475"]
[Result "1/2-1/2"]
[Round "04"]
[TimeControl "180+2"]
[Date "2023.01.31"]
[WhiteClock "0:02:20"]
[BlackClock "0:02:27"]

1. e4 {[%clk 0:03:00]}  c5 {[%clk 0:02:53]} 2. Nf3 {[%clk 0:02:58]}  d6 {[%clk 0:02:53]} 3. Bb5+ {[%clk 0:02:57]}  Nd7 {[%clk 0:02:52]} 4. Ba4 {[%clk 0:02:51]}  Nf6 {[%clk 0:02:51]} 5. O-O {[%clk 0:02:47]}  e6 {[%clk 0:02:51]} 6. Re1 {[%clk 0:02:44]}  Be7 {[%clk 0:02:51]} 7. c4 {[%clk 0:02:44]}  O-O {[%clk 0:02:50]} 8. Nc3 {[%clk 0:02:43]}  Ne5 {[%clk 0:02:43]} 9. d3 {[%clk 0:02:26]}  Nxf3+ {[%clk 0:02:36]} 10. Qxf3 {[%clk 0:02:26]}  a6 {[%clk 0:02:34]} 11. a3 {[%clk 0:02:25]}  Rb8 {[%clk 0:02:33]} 12. Bf4 {[%clk 0:02:20]}  Bd7 {[%clk 0:02:27]} 1/2-1/2


[Site "https://www.chess.com"]

[Event "Titled Tuesday Blitz January 31 Late 2023"]
[White "Gurevich, Dmitry"]
[Black "Jaracz, Pawel"]
[WhiteFideId "2000407"]
[BlackFideId "1102222"]
[WhiteElo "2393"]
[BlackElo "2467"]
[Result "0-1"]
[Round "04"]
[TimeControl "180+2"]
[Date "2023.01.31"]
[WhiteClock "0:00:01"]
[BlackClock "0:00:02"]

1. d4 {[%clk 0:02:57]}  Nf6 {[%clk 0:02:59]} 2. c4 {[%clk 0:02:55]}  g6 {[%clk 0:02:56]} 3. Nc3 {[%clk 0:02:55]}  d5 {[%clk 0:02:56]} 4. Nf3 {[%clk 0:02:54]}  Bg7 {[%clk 0:02:56]} 5. cxd5 {[%clk 0:02:54]}  Nxd5 {[%clk 0:02:55]} 6. Bd2 {[%clk 0:02:55]}  Nb6 {[%clk 0:02:51]} 7. Bg5 {[%clk 0:02:50]}  h6 {[%clk 0:02:48]} 8. Bf4 {[%clk 0:02:49]}  c5 {[%clk 0:02:36]} 9. dxc5 {[%clk 0:02:45]}  N6d7 {[%clk 0:02:36]} 10. Rc1 {[%clk 0:02:38]}  Na6 {[%clk 0:02:28]} 11. c6 {[%clk 0:02:17]}  bxc6 {[%clk 0:02:28]} 12. e3 {[%clk 0:02:17]}  O-O {[%clk 0:02:23]} 13. Qa4 {[%clk 0:02:00]}  Nac5 {[%clk 0:01:41]} 14. Qa3 {[%clk 0:02:00]}  Qb6 {[%clk 0:01:20]} 15. Be2 {[%clk 0:01:54]}  e5 {[%clk 0:01:12]} 16. Bg3 {[%clk 0:01:53]}  a5 {[%clk 0:01:01]} 17. O-O {[%clk 0:01:47]}  Qb4 {[%clk 0:00:57]} 18. Rfd1 {[%clk 0:01:39]}  Re8 {[%clk 0:00:55]} 19. Nd2 {[%clk 0:01:32]}  Bf8 {[%clk 0:00:49]} 20. Nc4 {[%clk 0:01:25]}  Ba6 {[%clk 0:00:47]} 21. Nd6 {[%clk 0:01:12]}  Bxd6 {[%clk 0:00:35]} 22. Rxd6 {[%clk 0:01:10]}  Ra7 {[%clk 0:00:15]} 23. Rxc6 {[%clk 0:01:00]}  Bxe2 {[%clk 0:00:14]} 24. Nxe2 {[%clk 0:00:59]}  Qxa3 {[%clk 0:00:14]} 25. bxa3 {[%clk 0:00:57]}  Ne4 {[%clk 0:00:14]} 26. f3 {[%clk 0:00:51]}  Nxg3 {[%clk 0:00:14]} 27. Nxg3 {[%clk 0:00:49]}  Rb8 {[%clk 0:00:13]} 28. Ne4 {[%clk 0:00:46]}  Kg7 {[%clk 0:00:13]} 29. Rc7 {[%clk 0:00:44]}  Rbb7 {[%clk 0:00:13]} 30. Rxb7 {[%clk 0:00:42]}  Rxb7 {[%clk 0:00:14]} 31. h4 {[%clk 0:00:33]}  Nf8 {[%clk 0:00:14]} 32. Rc5 {[%clk 0:00:31]}  f6 {[%clk 0:00:10]} 33. Rxa5 {[%clk 0:00:30]}  Ne6 {[%clk 0:00:10]} 34. Ra6 {[%clk 0:00:29]}  Nc7 {[%clk 0:00:10]} 35. Rxf6 {[%clk 0:00:26]}  Nd5 {[%clk 0:00:10]} 36. Re6 {[%clk 0:00:19]}  Nxe3 {[%clk 0:00:10]} 37. Rxe5 {[%clk 0:00:17]}  Rb2 {[%clk 0:00:10]} 38. g4 {[%clk 0:00:16]}  Nc4 {[%clk 0:00:09]} 39. Re7+ {[%clk 0:00:15]}  Kf8 {[%clk 0:00:09]} 40. Rc7 {[%clk 0:00:15]}  Ne5 {[%clk 0:00:09]} 41. Rc3 {[%clk 0:00:15]}  Rxa2 {[%clk 0:00:09]} 42. Kf1 {[%clk 0:00:13]}  Ke7 {[%clk 0:00:09]} 43. Ke1 {[%clk 0:00:13]}  Ke6 {[%clk 0:00:09]} 44. Kd1 {[%clk 0:00:11]}  Kd5 {[%clk 0:00:10]} 45. Kc1 {[%clk 0:00:09]}  Kd4 {[%clk 0:00:10]} 46. Rb3 {[%clk 0:00:08]}  Nc4 {[%clk 0:00:08]} 47. Rb4 {[%clk 0:00:06]}  Ra1+ {[%clk 0:00:05]} 48. Rb1 {[%clk 0:00:06]}  Rxa3 {[%clk 0:00:05]} 49. Rb4 {[%clk 0:00:05]}  Ra1+ {[%clk 0:00:05]} 50. Rb1 {[%clk 0:00:05]}  Rxb1+ {[%clk 0:00:05]} 51. Kxb1 {[%clk 0:00:04]}  Ke3 {[%clk 0:00:06]} 52. h5 {[%clk 0:00:03]}  g5 {[%clk 0:00:05]} 53. Nf6 {[%clk 0:00:02]}  Kxf3 {[%clk 0:00:05]} 54. Ng8 {[%clk 0:00:03]}  Kxg4 {[%clk 0:00:04]} 55. Nxh6+ {[%clk 0:00:04]}  Kxh5 {[%clk 0:00:04]} 56. Nf5 {[%clk 0:00:03]}  g4 {[%clk 0:00:04]} 57. Ng3+ {[%clk 0:00:03]}  Kh4 {[%clk 0:00:05]} 58. Ne2 {[%clk 0:00:04]}  Kh3 {[%clk 0:00:04]} 59. Kc2 {[%clk 0:00:04]}  Kg2 {[%clk 0:00:04]} 60. Kd3 {[%clk 0:00:04]}  Kf2 {[%clk 0:00:05]} 61. Nf4 {[%clk 0:00:02]}  Nb2+ {[%clk 0:00:05]} 62. Ke4 {[%clk 0:00:02]}  g3 {[%clk 0:00:02]} 63. Nh3+ {[%clk 0:00:01]}  Ke2 {[%clk 0:00:02]} 0-1


[Site "https://www.chess.com"]

[Event "Titled Tuesday Blitz January 31 Late 2023"]
[White "Winterberg, Lukas"]
[Black "Stoyanov, Tsvetan"]
[WhiteFideId "24622702"]
[BlackFideId "2917173"]
[WhiteElo "2402"]
[BlackElo "2454"]
[Result "0-1"]
[Round "04"]
[TimeControl "180+2"]
[Date "2023.01.31"]
[WhiteClock "0:00:10"]
[BlackClock "0:00:13"]

1. c4 {[%clk 0:03:00]}  e5 {[%clk 0:02:59]} 2. g3 {[%clk 0:02:59]}  Nf6 {[%clk 0:02:57]} 3. Bg2 {[%clk 0:03:00]}  d5 {[%clk 0:02:57]} 4. cxd5 {[%clk 0:03:00]}  Nxd5 {[%clk 0:02:58]} 5. Nc3 {[%clk 0:02:59]}  Nb6 {[%clk 0:02:58]} 6. d3 {[%clk 0:02:56]}  Be7 {[%clk 0:02:56]} 7. Nf3 {[%clk 0:02:56]}  Nc6 {[%clk 0:02:57]} 8. O-O {[%clk 0:02:56]}  O-O {[%clk 0:02:57]} 9. Rb1 {[%clk 0:02:55]}  Be6 {[%clk 0:02:55]} 10. a3 {[%clk 0:02:35]}  a5 {[%clk 0:02:54]} 11. Na4 {[%clk 0:02:29]}  Nd5 {[%clk 0:02:49]} 12. Nd2 {[%clk 0:02:19]}  f6 {[%clk 0:02:28]} 13. Ne4 {[%clk 0:02:17]}  Bf7 {[%clk 0:02:26]} 14. Bd2 {[%clk 0:02:09]}  Nd4 {[%clk 0:02:15]} 15. e3 {[%clk 0:01:58]}  Nxe3 {[%clk 0:02:09]} 16. fxe3 {[%clk 0:01:59]}  Bb3 {[%clk 0:02:08]} 17. Qe1 {[%clk 0:01:46]}  Nc2 {[%clk 0:02:08]} 18. Qc1 {[%clk 0:01:43]}  Bxa4 {[%clk 0:02:08]} 19. b3 {[%clk 0:01:43]}  Nxa3 {[%clk 0:01:15]} 20. bxa4 {[%clk 0:01:35]}  Nxb1 {[%clk 0:01:15]} 21. Qc4+ {[%clk 0:01:34]}  Kh8 {[%clk 0:01:13]} 22. Rxb1 {[%clk 0:01:35]}  Qc8 {[%clk 0:00:57]} 23. h3 {[%clk 0:01:20]}  Rd8 {[%clk 0:00:51]} 24. Kh2 {[%clk 0:01:20]}  c6 {[%clk 0:00:50]} 25. Nf2 {[%clk 0:01:07]}  Qd7 {[%clk 0:00:48]} 26. Qh4 {[%clk 0:01:03]}  f5 {[%clk 0:00:46]} 27. Qc4 {[%clk 0:01:01]}  Bd6 {[%clk 0:00:35]} 28. e4 {[%clk 0:00:47]}  f4 {[%clk 0:00:35]} 29. Bf3 {[%clk 0:00:42]}  Rf8 {[%clk 0:00:32]} 30. Bg4 {[%clk 0:00:41]}  Qe7 {[%clk 0:00:28]} 31. gxf4 {[%clk 0:00:39]}  exf4 {[%clk 0:00:28]} 32. Bf3 {[%clk 0:00:33]}  Qh4 {[%clk 0:00:28]} 33. Nh1 {[%clk 0:00:31]}  Rf6 {[%clk 0:00:19]} 34. Be1 {[%clk 0:00:20]}  Qg5 {[%clk 0:00:15]} 35. Bf2 {[%clk 0:00:18]}  Rh6 {[%clk 0:00:11]} 36. Rg1 {[%clk 0:00:18]}  Qe7 {[%clk 0:00:10]} 37. d4 {[%clk 0:00:15]}  Qd7 {[%clk 0:00:10]} 38. Bg4 {[%clk 0:00:15]}  f3+ {[%clk 0:00:10]} 39. Bg3 {[%clk 0:00:13]}  Qxg4 {[%clk 0:00:10]} 40. Nf2 {[%clk 0:00:12]}  Bxg3+ {[%clk 0:00:09]} 41. Rxg3 {[%clk 0:00:13]}  Qf4 {[%clk 0:00:09]} 42. d5 {[%clk 0:00:08]}  Rg6 {[%clk 0:00:09]} 43. Nh1 {[%clk 0:00:06]}  f2 {[%clk 0:00:09]} 44. Qf1 {[%clk 0:00:05]}  h5 {[%clk 0:00:09]} 45. h4 {[%clk 0:00:05]}  Qxh4+ {[%clk 0:00:08]} 46. Kg2 {[%clk 0:00:04]}  Qxe4+ {[%clk 0:00:08]} 47. Kh2 {[%clk 0:00:05]}  Qf4 {[%clk 0:00:06]} 48. Kg2 {[%clk 0:00:03]}  Rxg3+ {[%clk 0:00:06]} 49. Nxg3 {[%clk 0:00:04]}  h4 {[%clk 0:00:07]} 50. Ne2 {[%clk 0:00:04]}  Qg4+ {[%clk 0:00:06]} 51. Kh2 {[%clk 0:00:05]}  cxd5 {[%clk 0:00:06]} 52. Qxf2 {[%clk 0:00:05]}  Re8 {[%clk 0:00:06]} 53. Ng1 {[%clk 0:00:04]}  Qg3+ {[%clk 0:00:06]} 54. Qxg3 {[%clk 0:00:05]}  hxg3+ {[%clk 0:00:07]} 55. Kxg3 {[%clk 0:00:06]}  Re4 {[%clk 0:00:08]} 56. Nf3 {[%clk 0:00:05]}  Rxa4 {[%clk 0:00:09]} 57. Ng5 {[%clk 0:00:05]}  Rb4 {[%clk 0:00:09]} 58. Nf7+ {[%clk 0:00:06]}  Kg8 {[%clk 0:00:09]} 59. Nd6 {[%clk 0:00:07]}  a4 {[%clk 0:00:10]} 60. Nf5 {[%clk 0:00:08]}  a3 {[%clk 0:00:11]} 61. Ne7+ {[%clk 0:00:08]}  Kf7 {[%clk 0:00:09]} 62. Nxd5 {[%clk 0:00:09]}  Rb3+ {[%clk 0:00:10]} 63. Kf4 {[%clk 0:00:08]}  a2 {[%clk 0:00:11]} 64. Ne3 {[%clk 0:00:07]}  Rxe3 {[%clk 0:00:10]} 65. Kxe3 {[%clk 0:00:03]}  a1=Q {[%clk 0:00:11]} 66. Ke4 {[%clk 0:00:04]}  b6 {[%clk 0:00:11]} 67. Kd5 {[%clk 0:00:05]}  b5 {[%clk 0:00:11]} 68. Kc6 {[%clk 0:00:06]}  Qe5 {[%clk 0:00:10]} 69. Kb7 {[%clk 0:00:07]}  b4 {[%clk 0:00:11]} 70. Kc6 {[%clk 0:00:07]}  b3 {[%clk 0:00:12]} 71. Kd7 {[%clk 0:00:08]}  b2 {[%clk 0:00:13]} 72. Kc6 {[%clk 0:00:09]}  b1=Q {[%clk 0:00:12]} 73. Kd7 {[%clk 0:00:10]}  Qb7+ {[%clk 0:00:13]} 74. Kd8 {[%clk 0:00:10]}  Qe8# {[%clk 0:00:13]} 0-1


[Site "https://www.chess.com"]